Cogmind - Beta 15 @@@ ROGUE MODE // 2025.07.14 @ 01:38:56 Player: Cracklepappy Result: Self-destructed Performance ------------- Evolutions (6) 3000 Regions Visited (24) 4800 Robots Destroyed (452) 2260 Value Destroyed (24691) 24691 Prototype IDs (26) 520 Alien Tech Used (0) 0 Bonus (14445) 14445 TOTAL SCORE: 49716 Bonus ------- High Alert Combat Kills 5441 Follower Combat Kills 3124 Entered Garrisons 1600 Used RIF Installer 5000 Friendly Fire -720 Cogmind --------- Core Integrity 790/1150 Matter 122/300 Energy 160/160 System Corruption 0% Temperature Cool (51) Movement Walking (120) Location -4/Factory Parts ------- > --- POWER (1) -------- Light Fission Core > --- PROPULSION (6) --- Flexi-carbon Leg Flexi-carbon Leg > --- UTILITY (8) ------ Advanced Weapon Cycler Relay Coupler [NC] (99) Relay Coupler [Swarmer] (24) Relay Coupler [Sentry] (27) > --- WEAPON (4) ------- KE Penetrator KE Penetrator > --- INVENTORY (5) ---- Matter Compressor (250) Femtoactuators Relay Coupler [Proto] Improved Remote Datajack Enhanced Force Lance Peak State ------------ > --- POWER ------------ Micro Antimatter Reactor > --- PROPULSION ------- Impulse Thruster Array Impulse Thruster Array Impulse Thruster Array > --- UTILITY ---------- Relay Coupler [NC] Relay Coupler [Swarmer] Relay Coupler [Grunt] Relay Coupler [Sentry] Relay Coupler [Hunter] Long-range Tractor Beam > --- WEAPON ----------- Heavy Linear Accelerator Advanced Remote Datajack Enhanced Force Lance > --- INVENTORY -------- Improved Cesium-ion Thruster Authchip [Weapon] Improved Trap Extractor Gauss Rifle Antimatter Cannon [Rating: 112] Favorites ----------- Power Cooled Ion Engine Engine Cooled Ion Engine Power Core Micro Fission Core Reactor Micro Antimatter Reactor Propulsion Armored Wheel Treads Light Treads Leg Carbon-fiber Leg Wheel Armored Wheel Flight Unit Cooled VTOL Module Utility Large Storage Unit Device Improved Heat Sink Storage Large Storage Unit Processor Advanced Visual Processing Unit Hackware Relay Coupler [NC] Protection Hardened Medium Armor Plating Weapon Gauss Rifle Energy Gun Medium Laser Energy Cannon Nova Cannon Ballistic Gun Gauss Rifle Ballistic Cannon Improved Light Cannon Launcher Grenade Launcher Special Weapon Improved Remote Datajack Impact Weapon Heavy Mace Slashing Weapon Greatsword Piercing Weapon Enhanced Force Lance Build | -11 -10 -10 -9 -9 -9 -8 -8 -8 -8 -7 -7 -7 -7 -6 -6 -6 -6 -5 -5 -5 -5 -5 -5 -4 ------- Run | Yrd Mat Min Mat Sto Gar Mat Gar Mat Gar Fac Was Fac Gar Fac Gar Fac Gar Fac Was Fac Gar Fac Gar Fac Slots Evolved 12 | . . . 2 . . 2 . . . 2 . . . 2 . . . 2 . . . . . 2 Power . | . . . . . . . . . . . . . . . . . . . . . . . . . Propulsion 4 | . . . 1 . . . . . . 1 . . . 1 . . . 1 . . . . . . Utility 6 | . . . . . . 1 . . . 1 . . . 1 . . . 1 . . . . . 2 Weapon 2 | . . . 1 . . 1 . . . . . . . . . . . . . . . . . . Parts Attached 366 | 7 8 8 38 17 11 11 7 3 15 9 . 8 22 3 13 22 37 8 6 18 36 4 40 15 Power 31 | 1 2 1 4 1 1 . . 1 . 1 . 2 4 . 1 1 . . 1 1 4 . 4 1 Engine 16 | 1 2 1 4 1 1 . . 1 . . . 2 . . . . . . . 1 . . 2 . Core 8 | . . . . . . . . . . 1 . . 4 . . . . . . . 2 . 1 . Reactor 7 | . . . . . . . . . . . . . . . 1 1 . . 1 . 2 . 1 1 Propulsion 89 | 2 1 4 13 10 4 2 1 . 5 3 . 3 . 3 . 5 3 1 . 1 12 1 9 6 Treads 42 | 2 1 2 13 10 1 1 1 . 2 . . . . . . . . . . . 7 1 1 . Leg 16 | . . . . . . . . . . . . . . . . . . . . . 2 . 8 6 Wheel 8 | . . 2 . . 3 . . . 3 . . . . . . . . . . . . . . . Hover . | . . . . . . . . . . . . . . . . . . . . . . . . . Flight 23 | . . . . . . 1 . . . 3 . 3 . 3 . 5 3 1 . 1 3 . . . Utility 126 | 2 3 2 6 . 2 2 4 2 2 3 . 1 13 . 8 9 19 5 3 9 14 1 13 3 Device 31 | 1 . 1 4 . . . 2 . . 1 . . 1 . 2 2 . 2 3 2 5 1 2 2 Storage 12 | 1 2 . 1 . . 1 . 1 . . . . . . . . . 1 . 1 1 . 3 . Processor 8 | . 1 . . . 1 . . . . 1 . . . . . . . . . 3 1 . 1 . Hackware 72 | . . . 1 . 1 1 1 1 2 1 . 1 12 . 6 7 19 2 . 3 7 . 6 1 Protection 3 | . . 1 . . . . 1 . . . . . . . . . . . . . . . 1 . Artifact . | . . . . . . . . . . . . . . . . . . . . . . . . . Weapon 120 | 2 2 1 15 6 4 7 2 . 8 2 . 2 5 . 4 7 15 2 2 7 6 2 14 5 Energy Gun 11 | 1 . . 4 . . . . . 2 . . . . . 1 . 3 . . . . . . . Energy Cannon 5 | . . . 3 . . . . . . . . . . . 1 . . . . . 1 . . . Ballistic Gun 56 | 1 1 . 5 5 3 3 . . 3 . . 1 3 . . 1 10 . 2 2 4 1 7 4 Ballistic Cannon 20 | . . . 2 . . 3 2 . . 1 . . . . . 1 . 2 . 2 . 1 6 . Launcher 5 | . 1 . . 1 . . . . . . . . . . 1 1 . . . 1 . . . . Special Weapon 15 | . . 1 . . 1 . . . 1 1 . . 2 . . 3 2 . . 1 1 . 1 1 Impact Weapon 3 | . . . . . . 1 . . . . . 1 . . . . . . . 1 . . . . Slashing Weapon 3 | . . . 1 . . . . . 2 . . . . . . . . . . . . . . . Piercing Weapon 2 | . . . . . . . . . . . . . . . 1 1 . . . . . . . . Special Melee Weapon . | . . . . . . . . . . . . . . . . . . . . . . . . . Unidentified Prototypes 13 | . . . 5 1 . 1 . . . . . . . . . . . . 1 1 4 . . . Corrupted Parts 2 | . . . . . . . . . 1 . . . . . . 1 . . . . . . . . System Corruption 19 | . . . . . . . . . 10 . . . . . . 9 . . . . . . . . Parts Lost 74 | . 1 . . . 1 . 2 . 1 . . . 2 . 1 9 10 2 . 3 12 . 13 17 Power 8 | . 1 . . . . . . . . . . . 1 . . 1 . . . 1 1 . 2 1 Propulsion 20 | . . . . . . . . . . . . . . . . 1 1 . . 1 6 . 5 6 Utility 23 | . . . . . . . 1 . . . . . 1 . 1 4 4 2 . 1 1 . 2 6 Weapon 23 | . . . . . 1 . 1 . 1 . . . . . . 3 5 . . . 4 . 4 4 Highest Loss Streak 10 | . 1 . . . 1 . 2 . 1 . . . 1 . 1 3 2 2 . 2 6 . 5 10 To Critical Strikes 3 | . . . . . . . . . . . . . . . . . . . . . 1 . . 2 Average Backups 12 | 7 13 14 14 14 14 14 14 16 19 10 5 4 4 4 4 4 4 4 4 8 9 14 14 14 Power . | . 1 1 1 1 . . . . 1 . . . . . . . . . . . . . . . Propulsion 3 | 3 6 5 4 4 5 5 5 5 6 1 . . . 1 1 . . . . . . . . . Utility 5 | . 2 4 6 5 4 5 4 5 6 4 2 2 2 2 2 2 1 1 2 4 7 8 8 7 Weapon 2 | 1 2 3 2 2 3 3 3 5 3 3 3 2 . . . . 1 1 1 2 1 5 4 4 Tool/Special . | . . . . . . . . . . . . . . . . . . . . . . . . . Unused Backups 78 | 1 10 2 4 3 4 4 . 1 3 3 . . 10 3 2 4 6 . . 3 6 . 4 5 Power 6 | . . . 1 . . 1 . . 2 . . . . . . . 1 . . . . . 1 . Propulsion 17 | . 6 . . 1 1 1 . 1 . 1 . . 1 1 1 2 1 . . . . . . . Utility 40 | 1 3 2 1 2 2 1 . . 1 1 . . 7 2 . 2 3 . . 2 6 . . 4 Weapon 14 | . 1 . 2 . . 1 . . . 1 . . 2 . 1 . 1 . . 1 . . 3 1 Tool/Special 1 | . . . . . 1 . . . . . . . . . . . . . . . . . . . Average Slot Usage (%) 95 | . 99 100 99 99 100 99 99 100 96 84 89 93 91 95 99 97 90 70 81 78 89 98 96 93 Engine 6 | . 13 14 10 11 11 9 9 9 9 2 . 6 . . . . . . . . . . . . Core 1 | . . . . . . . . . . 4 4 . 6 6 5 5 . . . . 1 . 2 4 Reactor 1 | . . . . . . . . . . . . . . . . . 6 5 5 4 3 5 2 . Treads 11 | . 28 14 32 28 8 7 9 9 19 . . . . . . . . . . . 13 29 6 . Leg 2 | . . . . . . . . . . . . . . . . . . . . . 4 5 27 30 Wheel 6 | . . 13 . 4 25 19 18 18 7 2 . . . . . . . . . . . . . . Flight 7 | . . . . . . . . . . 22 30 30 30 30 33 33 27 16 17 16 7 . . . Device 3 | . 5 . 8 . . . 9 1 6 9 7 7 . 4 4 4 . 3 7 3 3 1 2 5 Storage 7 | . 14 14 11 11 11 9 9 9 9 7 7 2 2 . . . . . 2 4 5 5 5 4 Processor 2 | . 8 . . . 2 . . . . 4 7 7 7 6 6 6 2 . . 3 4 . 1 . Hackware 11 | . . . 1 11 8 8 2 7 1 4 7 12 16 20 21 20 26 26 23 19 18 25 19 23 Protection 3 | . . 13 1 . . 9 6 9 8 . . . . . . . . . . . . . 1 3 Energy Gun 2 | . 14 11 5 . . . . . 2 . . . . . . . 1 . . . . . . . Energy Cannon 1 | . . . 9 . . . . . . . . . . . . . . . . . 3 5 . . Ballistic Gun 15 | . 13 13 13 25 26 33 . . 16 9 . 6 21 14 13 8 11 2 10 9 8 11 6 19 Ballistic Cannon 5 | . . . 3 4 . 1 32 29 7 1 7 5 . . . 2 1 7 5 3 1 . 11 . Special Weapon 1 | . . . . . 1 . . 5 . 3 7 5 2 4 5 3 3 2 . 3 2 4 1 . Impact Weapon 1 | . . . . . . . 2 1 4 . . 1 2 6 2 . . . . . 1 . . . Piercing Weapon 1 | . . . . . . . . . . . . . . . 3 7 6 . 4 4 1 . 1 1 Peak Build Rating 112 | 8 10 16 22 25 27 36 33 33 40 51 48 49 54 65 77 80 90 112 110 111 110 103 104 97 Average Rating 47 | 6 9 14 19 22 25 32 29 31 36 48 46 44 46 58 68 72 76 103 105 106 93 99 88 90 On Entrance 52 | . 7 10 15 22 24 26 28 32 33 40 48 43 48 47 65 72 80 90 103 106 94 100 102 85 Naked Turns . | . . . . . . . . . . . . . . . . . . . . . . . . . Heaviest Build 79 | 14 29 42 48 43 42 52 53 72 77 20 19 19 20 20 27 30 33 49 47 48 65 72 79 58 Greatest Support 141 | 40 40 42 62 63 36 36 24 24 60 20 20 20 20 27 27 30 38 48 48 48 141 141 141 115 Greatest Overweight (x) 16 | . . 1 1 3 3 16 2 2 5 . . 5 . . . . 1 1 11 1 8 . 1 . Average Overweight (x) . | . . . . 1 1 5 1 2 1 . . . . . . . . . . . . . . . Largest Inventory Capacity 20 | 8 15 15 15 15 15 15 15 20 20 20 5 5 5 5 5 5 5 5 5 10 15 15 15 15 Average Capacity 12 | 7 13 15 15 15 15 15 15 17 20 10 5 5 5 5 5 5 5 5 5 9 10 15 15 14 Most Carried 20 | 8 15 15 15 15 15 15 15 20 20 20 5 5 5 5 5 5 5 5 5 10 15 15 15 15 Average Carried 12 | 7 13 14 14 14 14 14 14 16 19 8 5 4 4 4 4 4 4 4 4 9 9 14 14 13 Final Capacity 20 | 8 15 15 15 15 15 15 15 20 20 5 5 5 5 5 5 5 5 5 5 10 15 15 15 5 Final Carried 20 | 8 15 15 15 15 15 15 15 20 20 5 5 5 5 5 5 5 5 5 5 8 15 15 15 5 Class Distribution -------------------- 16% | Commander-Tank 14% | Mutant 13% | Commander-Sprinter 13% | Botlord-Gunner 12% | Tank 10% | Gunner 4% | Scavenger-Gunner 4% | Commander-Gunner Dominant Class ---------------- Mutant | -10/Materials Mutant | -10/Mines Gunner | -9/Materials Scavenger-Gunner | -9/Storage Commander-Gunner | -9/Garrison Tank | -8/Materials Commander-Tank | -8/Garrison Commander-Tank | -8/Materials Commander-Tank | -8/Garrison Commander-Tank | -7/Factory Sprinter | -7/Waste Commander-Sprinter | -7/Factory Commander-Sprinter | -7/Garrison Commander-Sprinter | -6/Factory Commander-Sprinter | -6/Garrison Commander-Sprinter | -6/Factory Botlord-Gunner | -6/Garrison Botlord-Gunner | -5/Factory Gunner | -5/Waste Gunner | -5/Factory Botlord-Gunner | -5/Garrison Botlord-Gunner | -5/Factory Botlord-Gunner | -5/Garrison Botlord-Tank | -4/Factory Resources | -11 -10 -10 -9 -9 -9 -8 -8 -8 -8 -7 -7 -7 -7 -6 -6 -6 -6 -5 -5 -5 -5 -5 -5 -4 ----------- Run | Yrd Mat Min Mat Sto Gar Mat Gar Mat Gar Fac Was Fac Gar Fac Gar Fac Gar Fac Was Fac Gar Fac Gar Fac Matter Collected 21493 | 322 547 310 848 1232 658 881 1868 127 1918 . . 347 2067 . 679 570 2481 403 339 549 1695 417 2202 1033 Remotely 1572 | . . . . . . . . . . . . . . . . 253 . 191 223 . 905 . . . Salvage Created 19593 | 309 575 34 1656 2089 1022 728 1093 126 1279 . . 310 1284 . 334 1081 2017 189 966 588 913 79 1605 1316 Parts 884 | 23 37 2 101 110 52 43 62 4 67 . . 15 59 . 13 53 72 3 12 36 41 5 42 32 Haulers Intercepted 15 | . 1 . 5 6 . 1 . . . . . 1 . . . 1 . . . . . . . . Recyclers Shooed 11 | . 2 . 3 . . . . . . . . . . . . 1 . . . 4 . . . 1 Parts Field Recycled . | . . . . . . . . . . . . . . . . . . . . . . . . . Retrieved Matter . | . . . . . . . . . . . . . . . . . . . . . . . . . Parts Self-Destructed . | . . . . . . . . . . . . . . . . . . . . . . . . . Prevented . | . . . . . . . . . . . . . . . . . . . . . . . . . Kills | -11 -10 -10 -9 -9 -9 -8 -8 -8 -8 -7 -7 -7 -7 -6 -6 -6 -6 -5 -5 -5 -5 -5 -5 -4 ------- Run | Yrd Mat Min Mat Sto Gar Mat Gar Mat Gar Fac Was Fac Gar Fac Gar Fac Gar Fac Was Fac Gar Fac Gar Fac Combat Hostiles Destroyed 368 | . 18 8 28 30 21 14 52 5 31 . . 5 28 . 8 14 31 1 1 6 20 1 33 13 Melee 28 | . . . . . . . . . 3 . . 3 . . 3 2 12 . . 1 4 . . . Guns 152 | . 16 . 14 18 13 8 . . 11 . . 1 26 . 5 7 10 . . . 6 1 4 12 Cannons 100 | . . . 14 12 . 1 27 4 8 . . 1 . . . . 8 1 1 4 4 . 15 . AOE 87 | . 2 8 . . 8 5 25 1 9 . . . 1 . . 5 1 . . 1 6 . 14 1 Classes Destroyed 24 | 3 5 2 4 2 2 . 2 . 2 . . . . . . . . . 1 . 1 . . . Worker 19 | 2 . . 1 4 . 1 . . . . . 2 . . . 3 . . . 4 . . . 2 Builder 7 | . . . . 2 . . . . . . . . . . . . . . . 2 . 1 . 2 Tunneler 13 | 9 . . . . . . . . . . . . . . . 1 . . . 1 . 1 . 1 Hauler 16 | . 1 . 5 6 . 1 . . . . . 1 . . . 2 . . . . . . . . Recycler 15 | 1 1 . 1 3 . . . . . . . . . . . 4 . 1 . 2 . . . 2 Mechanic 1 | . . . . 1 . . . . . . . . . . . . . . . . . . . . Operator 4 | . . . 1 1 . 1 . . . . . . . . . . . . . 1 . . . . Watcher 11 | . 1 . 4 2 . 3 . . . . . . 1 . . . . . . . . . . . Swarmer 59 | . 12 . . . . 3 13 . 5 . . . 4 . 3 8 . . . 1 1 . 8 1 Cutter 2 | . . . . . . . . . 2 . . . . . . . . . . . . . . . Saboteur 6 | . . . . . . . 6 . . . . . . . . . . . . . . . . . Grunt 167 | . 5 . 15 17 13 8 20 3 12 . . 5 12 . 4 3 13 . . 2 4 . 19 12 Brawler 10 | . . . 1 2 . . 1 1 . . . . 2 . . . 3 . . . . . . . Duelist 8 | . . . 2 . . . . 1 . . . . 2 . . . 3 . . . . . . . Sentry 57 | . . . 10 11 4 4 7 . 4 . . . 2 . . 1 6 . . . 5 . 3 . Specialist 3 | . . . . . 1 . . . . . . . . . . . 1 . . . 1 . . . Hunter 17 | . . . . . . . 2 . 3 . . . 2 . 1 2 . 1 . . 4 . 1 1 Programmer 30 | . . . . . 3 . 3 . 4 . . . 4 . . . 4 1 . 3 4 1 3 . Behemoth 2 | . . . . . . . . . 1 . . . . . . . 1 . . . . . . . Compactor 1 | . . . . . . . . . . . . . . . . . . . 1 . . . . . Executioner 1 | . . . . . . . . . . . . . . . . . . . . . 1 . . . Subdweller 1 | . 1 . . . . . . . . . . . . . . . . . . . . . . . Zionite 1 | . . 1 . . . . . . . . . . . . . . . . . . . . . . Assembled 8 | . . 8 . . . . . . . . . . . . . . . . . . . . . . Thug 1 | . . . . . . . . . . . . . . . . . 1 . . . . . . . Best Kill Streak 16 | 2 3 2 5 5 9 3 7 2 6 . . 2 3 . 3 7 3 2 1 4 4 3 16 7 Combat Bots Only 16 | . 3 2 5 5 9 3 7 2 6 . . 2 3 . 3 4 3 1 1 2 4 1 16 4 Max Kills in Single Turn 6 | 1 1 2 1 2 3 3 4 1 4 . . 1 2 . 1 6 1 1 1 3 2 2 3 2 Gunslinging 1 | . . . . 1 . . . . . . . . 1 . . . . . . . . . . 1 Exploded 4 | . 1 1 . . 3 3 4 1 4 . . . 1 . . 4 1 . . 1 2 . 3 1 Melee 1 | . . . . . . . . . 1 . . 1 . . 1 1 1 . . 1 1 . . . Uniques/NPCs Destroyed . | . . . . . . . . . . . . . . . . . . . . . . . . . Combat | -11 -10 -10 -9 -9 -9 -8 -8 -8 -8 -7 -7 -7 -7 -6 -6 -6 -6 -5 -5 -5 -5 -5 -5 -4 -------- Run | Yrd Mat Min Mat Sto Gar Mat Gar Mat Gar Fac Was Fac Gar Fac Gar Fac Gar Fac Was Fac Gar Fac Gar Fac Hostile Shots Fired 1764 | . 66 10 61 97 40 28 112 10 169 . 1 24 92 . 43 128 249 28 . 63 165 17 207 154 Missed 588 | . 23 3 16 31 16 6 30 2 43 . . 10 44 . 19 50 117 12 . 25 42 4 53 42 Hits 1176 | . 43 7 45 66 24 22 82 8 126 . 1 14 48 . 24 78 132 16 . 38 123 13 154 112 Melee 11 | . . . 4 1 . . . . 2 . 1 . 2 . . . 1 . . . . . . . Projectile 1165 | . 43 7 41 65 24 22 82 8 124 . . 14 46 . 24 78 131 16 . 38 123 13 154 112 AOE 1 | . . . . . . . . . . . . . . . . . . . . . 1 . . . Critical Strikes 59 | . . . 5 2 2 1 5 . 11 . 1 1 1 . 1 2 3 . . 1 5 . 9 9 Part Disruptions 2 | . . . . . . . 1 . . . . . . . . . 1 . . . . . . . Damage Taken 19296 | . 480 175 656 961 352 468 1121 98 1721 . 49 252 551 . 347 1018 1853 391 . 888 2193 314 2884 2524 Core 2742 | . 67 11 107 26 72 50 69 6 194 . . 15 98 . 81 213 433 97 . 254 415 . 174 360 Absorbed by Shields 1870 | . . . . . . . 57 . 354 . . . 221 . . . 323 . . 23 475 . 417 . Regen/Repaired (Parts) 1906 | . . . . 210 12 48 289 66 813 . . 47 159 . 80 84 . 98 . . . . . . Core Remaining (%) 51 | 100 . 68 . . 48 . . . 42 . . . 83 . . . 14 . . . . . 6 . Volleys Fired 1363 | 52 64 21 71 86 33 48 91 16 73 1 . 9 170 2 39 54 201 26 26 37 94 22 70 57 Largest 4 | 2 2 1 3 3 3 4 4 4 4 1 . 3 4 1 3 2 4 1 1 3 4 4 4 4 Hottest 256 | 70 70 100 147 120 89 107 132 132 162 5 . 89 107 7 79 80 149 70 33 99 217 239 256 132 Shots Fired 2906 | 104 124 21 213 253 86 128 274 34 237 1 . 14 334 2 56 68 267 26 26 68 167 40 191 172 Gun 1672 | 104 121 . 129 208 78 105 . . 149 . . 10 274 . 29 31 128 . . 30 52 17 50 157 Cannon 830 | . . . 84 45 . 3 251 25 68 . . 1 . . . 8 65 15 26 25 76 14 124 . Launcher 87 | . 3 19 . . 6 3 16 2 13 . . . . . . 2 . . . 2 13 . 8 . Special 317 | . . 2 . . 2 17 7 7 7 1 . 3 60 2 27 27 74 11 . 11 26 9 9 15 Kinetic 2205 | 52 61 . 117 247 78 108 251 25 185 . . 11 274 . 28 39 191 15 26 55 105 26 154 157 Thermal 298 | 52 60 2 96 6 . . . . 32 . . . . . . . 2 . . . 23 5 20 . Explosive 85 | . 3 19 . . 6 3 16 2 13 . . . . . . . . . . 2 13 . 8 . Electromagnetic 3 | . . . . . . . . . . . . . . . 1 2 . . . . . . . . Robot Hit Streak 21 | 7 10 5 18 16 10 12 14 6 13 7 . 4 14 2 16 11 8 9 8 7 21 6 13 11 Robot Miss Streak 7 | 7 5 4 5 6 2 7 7 3 5 . . 2 7 . 6 4 5 2 2 5 5 6 5 3 Penetration Max 1 | . . . . . . 1 . . 1 . . . 1 . . . 1 . . 1 1 1 1 1 Secondary Targets 22 | . 2 . . 2 1 1 . . . . . . 3 . 2 2 3 . . . . . . 6 Max Gunslinging Chain 1 | . 1 . . 1 1 1 . . . . . . 1 . 1 1 1 . . . . . . 1 Shots Hit Robots 1818 | 60 73 5 135 174 58 67 130 20 147 1 . 18 185 2 40 61 190 18 47 48 108 21 108 102 Core Hits 800 | 22 35 14 64 90 38 30 74 9 66 . . 7 55 . 7 34 63 3 8 23 44 4 62 48 Critical Kills 5 | . . . 1 1 . 1 . . . . . . 1 . . . . . . . . . 1 . Critical Parts Destroyed 22 | . . . . . 1 1 . . 2 . . 2 3 . 1 . 4 . . . 1 1 1 5 Critical Strikes 90 | 4 6 . 3 2 1 2 9 . 7 . . 4 4 . 1 2 16 2 5 . 4 1 12 5 Burn 13 | 4 6 . 2 . . . . . 1 . . . . . . . . . . . . . . . Meltdown 1 | . . . 1 . . . . . . . . . . . . . . . . . . . . . Destroy 25 | . . . . 1 1 2 . . 2 . . 2 4 . . . 5 . . . . 1 2 5 Blast 24 | . . . . . . . 9 . 2 . . . . . . . 3 2 . . 2 . 6 . Smash 4 | . . . . . . . . . 1 . . . . . 1 . . . . . 2 . . . Sever 4 | . . . . 1 . . . . 1 . . 2 . . . . . . . . . . . . Impale 19 | . . . . . . . . . . . . . . . . 2 8 . 5 . . . 4 . Melee Attacks 362 | . . . 1 16 17 2 29 . 46 3 . 13 31 . 32 31 60 . 28 22 17 . 13 1 Impact 104 | . . . . . . 2 29 . 23 . . . 31 . 14 . . . . . 5 . . . Slashing 73 | . . . 1 16 17 . . . 23 3 . 13 . . . . . . . . . . . . Piercing 185 | . . . . . . . . . . . . . . . 18 31 60 . 28 22 12 . 13 1 Sneak Attacks 48 | . . . . 1 . . . . 1 . . 4 1 . 4 6 24 . . 6 1 . . . Combat Hostiles 32 | . . . . . . . . . 1 . . 1 1 . 4 1 22 . . 1 1 . . . Follow-up Attacks 5 | . . . . . . . . . 2 . . . . . . 1 1 . . . 1 . . . Damage Inflicted 55921 | 601 958 517 2418 2939 2230 1670 4885 420 5620 . . 923 3556 . 785 3153 6242 634 2419 2296 4180 603 5656 3216 Guns 19039 | 601 749 . 1238 2138 838 989 . . 1717 . . 127 3365 . 274 376 1324 . . 583 791 376 843 2710 Cannons 13217 | . . . 1175 706 . 44 2638 286 628 . . 20 . . . 131 1165 634 832 513 1639 227 2579 . Explosions 11179 | . 191 452 . . 1097 637 2191 134 1563 . . . . . . 1557 . . . 423 1117 . 1340 477 Melee 12361 | . . . . 93 295 . 56 . 1712 . . 776 191 . 511 1089 3753 . 1587 777 633 . 888 . Ramming 125 | . 18 65 5 2 . . . . . . . . . . . . . . . . . . 6 29 Kinetic 29047 | 205 309 . 1240 2730 838 1033 2638 286 2056 . . 147 3365 . 274 507 2474 634 832 1096 2112 556 3005 2710 Thermal 4494 | 396 440 . 1173 114 . . . . 289 . . . . . . 1285 15 . . . 318 47 417 . Explosive 9622 | . 191 452 . . 1097 637 2191 134 1563 . . . . . . . . . . 423 1117 . 1340 477 Electromagnetic 272 | . . . . . . . . . . . . . . . . 272 . . . . . . . . Impact 1171 | . . . . . . . 56 . 247 . . . 191 . 466 . . . . . 211 . . . Slashing 2629 | . . . . 93 295 . . . 1465 . . 776 . . . . . . . . . . . . Piercing 8561 | . . . . . . . . . . . . . . . 45 1089 3753 . 1587 777 422 . 888 . Highest Corruption 20 | . . . 2 2 4 . 2 2 20 . 9 9 10 . . 13 18 1 1 5 10 13 16 . Average Corruption 7 | . . . 2 2 2 . 1 2 5 . 9 9 9 . . 7 14 1 1 1 9 10 15 . Corruption Purged 1 | . . . . . . . . . . . . . . . . . . . . 1 . . . . Corruption Blocked . | . . . . . . . . . . . . . . . . . . . . . . . . . Effects 640 | . . . . 29 10 . 24 3 103 . 1 15 96 . . 22 114 . 4 6 112 11 90 . Message Errors 145 | . . . . 11 2 . 4 1 18 . . 4 27 . . 3 24 . 1 1 25 4 20 . Matter Fused 160 | . . . . 6 6 . 5 . 31 . . 2 22 . . 8 29 . 1 2 26 1 21 . Heat Flow Errors 81 | . . . . 3 1 . 5 . 14 . . 3 12 . . 4 12 . 1 . 11 2 13 . Energy Discharges 67 | . . . . 4 . . 2 . 11 . 1 2 12 . . 1 9 . . 1 18 1 5 . Parts Rejected 7 | . . . . . . . . . . . . . 3 . . . 2 . . . 1 . 1 . Parts Fused 6 | . . . . . . . . . 1 . . . 2 . . . . . . . 2 . 1 . Data Loss (minor) 81 | . . . . 1 . . 2 . 17 . . 3 9 . . 4 13 . 1 . 15 1 15 . Data Loss (major) 29 | . . . . 1 . . 1 1 4 . . . 2 . . 1 9 . . 1 5 . 4 . Misfires 23 | . . . . 1 . . 4 . 4 . . . 3 . . . 1 . . 1 4 2 3 . Alerts 17 | . . . . . 1 . 1 . 2 . . . 2 . . . 1 . . . 4 . 6 . Misdirections 9 | . . . . . . . . . . . . . . . . 1 8 . . . . . . . Weapon Failures 15 | . . . . 2 . . . 1 1 . . 1 2 . . . 6 . . . 1 . 1 . Overload Shots . | . . . . . . . . . . . . . . . . . . . . . . . . . Overflow Damage 2899 | . . 9 7 . 15 8 97 . 421 . . 119 20 . 209 465 668 54 174 141 152 41 252 47 Projectiles 277 | . . . 7 . . . 25 . . . . . . . . 6 39 54 . 8 17 41 80 . Explosions 483 | . . 9 . . 8 8 41 . 15 . . . . . . 194 . . . 25 87 . 49 47 Melee 2139 | . . . . . 7 . 31 . 406 . . 119 20 . 209 265 629 . 174 108 48 . 123 . Knockbacks 72 | . . 2 6 8 . . 10 3 4 . . . . . 1 2 1 2 . 2 10 3 18 . Impact 5 | . . 2 . . . . 1 . . . . . . . 1 . . . . . 1 . . . Kinetic 63 | . . . 6 7 . . 9 3 4 . . . . . . 2 1 2 . 2 7 3 17 . Secondary 4 | . . . . 1 . . . . . . . . . . . . . . . . 2 . 1 . Self-Inflicted Damage 653 | . 10 53 . . . 108 38 . 50 . . . . . . 20 . . . 104 138 . 132 . Shots 19 | . 1 4 . . . 2 2 . 2 . . . . . . 2 . . . 2 2 . 2 . Rammed 11 | . 3 6 1 1 . . . . . . . . . . . . . . . . . . . . Targets Rammed 14 | . 3 6 1 1 . . . . . . . . . . . . . . . . . . 1 2 Kicked 3 | . . . . . . . . . . . . . . . . . . . . . . . 1 2 Crushed . | . . . . . . . . . . . . . . . . . . . . . . . . . Highest Temperature 405 | 90 100 88 256 311 85 206 290 151 280 2 2 180 285 . 31 246 329 96 109 162 373 266 330 405 Average Temperature 71 | 32 34 14 55 41 8 51 77 67 85 1 1 72 61 . 17 107 93 38 69 64 102 125 103 151 Received Heat Transfer 4380 | . 84 . 282 429 42 180 487 45 533 . . 126 104 . 21 171 323 48 . 81 260 36 758 370 Effects 11 | . . . . . . . . . . . . . 2 . . . 2 . . . . . 2 5 Shutdowns 3 | . . . . . . . . . . . . . . . . . . . . . . . 1 2 Energy Bleed 2 | . . . . . . . . . . . . . . . . . 1 . . . . . 1 . Interference 5 | . . . . . . . . . . . . . 2 . . . 1 . . . . . . 2 Matter Decay 1 | . . . . . . . . . . . . . . . . . . . . . . . . 1 Siege Activations . | . . . . . . . . . . . . . . . . . . . . . . . . . Martial Activations . | . . . . . . . . . . . . . . . . . . . . . . . . . Shielding Activations . | . . . . . . . . . . . . . . . . . . . . . . . . . Robots Disrupted . | . . . . . . . . . . . . . . . . . . . . . . . . . Combat Hostiles . | . . . . . . . . . . . . . . . . . . . . . . . . . Robots Corrupted 4 | . . . . . . . 1 . . . . . 1 . . 1 . . . . 1 . . . Combat Hostiles 2 | . . . . . . . . . . . . . 1 . . . . . . . 1 . . . Parts Fried 5 | . . . . . . . 1 . . . . . 1 . 2 . . . . . 1 . . . Impact Corruptions 15 | . . . . . . . 2 . 5 . . . 2 . 3 . . . . . 2 . . 1 Robots Melted 1 | . . . 1 . . . . . . . . . . . . . . . . . . . . . Combat Hostiles . | . . . . . . . . . . . . . . . . . . . . . . . . . Parts Melted 17 | 2 4 . 2 . . 1 . . 3 . . . . . . 1 . . . . . . 4 . Heat Transferred 7815 | 1480 1739 . 2368 185 . . . . 610 . . . . . . 800 25 . . . 201 37 370 . Parts Sabotaged . | . . . . . . . . . . . . . . . . . . . . . . . . . Parts Stolen . | . . . . . . . . . . . . . . . . . . . . . . . . . Parts Stripped . | . . . . . . . . . . . . . . . . . . . . . . . . . Power Chain Reactions 1 | . . . . . . . . . . . . . . . . 1 . . . . . . . . Alert | -11 -10 -10 -9 -9 -9 -8 -8 -8 -8 -7 -7 -7 -7 -6 -6 -6 -6 -5 -5 -5 -5 -5 -5 -4 ------- Run | Yrd Mat Min Mat Sto Gar Mat Gar Mat Gar Fac Was Fac Gar Fac Gar Fac Gar Fac Was Fac Gar Fac Gar Fac Maximum Alert Level 5 | . . . 1 2 4 2 5 4 5 5 2 2 5 3 4 4 5 4 2 . 4 2 4 2 Low Security (%) 31 | 100 100 100 32 76 . 65 2 . . . . . . . . . . . 15 100 4 . 3 . Level 1 15 | . . . 67 22 10 31 11 . . . . 26 7 . . . . . 66 . 15 88 11 . Level 2 8 | . . . . . 16 2 8 . . . 100 73 13 . 6 . . . 18 . 19 11 34 100 Level 3 17 | . . . . . 47 . 14 12 16 . . . 26 100 23 75 29 22 . . 44 . 49 . Level 4 15 | . . . . . 25 . 23 87 30 . . . 23 . 70 24 41 77 . . 16 . 2 . Level 5 11 | . . . . . . . 39 . 52 100 . . 29 . . . 28 . . . . . . . High Security . | . . . . . . . . . . . . . . . . . . . . . . . . . Max Security . | . . . . . . . . . . . . . . . . . . . . . . . . . Peak Influence 3512 | 5 115 44 330 421 1205 586 2554 1244 3512 1843 639 482 1962 1029 1485 1202 1954 1469 454 188 1322 693 1125 643 Initial 1843 | . . 34 7 128 273 586 78 1244 793 1843 639 440 296 1029 661 779 736 1025 454 110 125 693 172 590 Average 729 | . 46 5 193 136 861 180 1351 1185 1966 1837 638 422 1141 991 1190 1000 1339 1287 303 47 726 346 717 557 Influence Increases 19683 | 60 570 96 888 1229 982 515 2516 256 2759 3 . 202 1726 6 854 1263 1668 583 6 383 1417 88 1163 450 Destroy 0b10 Robot/C 7637 | . 340 . 560 720 560 280 1060 160 680 . . 140 665 . 240 420 624 84 . 72 300 36 468 228 Destroy 0b10 Robot/NC 496 | 60 15 . 60 95 15 35 5 5 30 . . 15 5 . . 42 18 21 . 30 3 6 9 27 Destroy Leader 990 | . 74 . 188 206 20 78 20 30 30 . . 22 56 . 16 102 24 14 . 6 30 12 30 32 Allied During Kill 1356 | . . . . 84 225 17 18 30 44 . . 25 130 . 194 348 130 11 . 1 18 10 34 37 Successful Hack 248 | . 22 . 57 9 12 14 7 2 14 . . . 6 6 23 9 9 21 . 18 14 . 5 . Select Force Hacks 60 | . 60 . . . . . . . . . . . . . . . . . . . . . . . Disable Machine 774 | . . 15 15 75 . 30 15 . 75 . . . . . . 126 . 234 . 81 9 . 36 63 Anti-Garrison Action 5726 | . . . . . 100 . 1150 . 1750 . . . 663 . 353 90 540 . . . 750 . 330 . Destroy Structure 1496 | . 14 81 8 10 50 61 196 29 76 3 . . 66 . 28 36 44 162 6 76 257 24 215 54 Partial Spotted 117 | . 15 . . . . . . . . . . . 30 . . 27 18 18 . 9 . . . . Lose Combat Pursuer 783 | . 30 . . 30 . . 45 . 60 . . . 105 . . 63 261 18 . 90 36 . 36 9 Influence Decreases 19155 | 60 481 165 603 1113 198 1599 83 1590 467 1689 1197 407 188 1023 314 1696 766 1239 1146 362 274 1164 284 1047 Entered New Map 11317 | . . 55 13 177 148 619 43 1310 427 1669 1187 189 128 933 284 706 316 929 844 48 54 629 74 535 Time Decay 4643 | 60 471 110 590 605 . 770 . 120 . 20 10 198 . 90 . 410 . 230 302 265 . 170 . 222 Lost Part 739 | . 10 . . . 10 . 20 . 10 . . . 20 . 10 90 100 20 . 29 120 . 130 170 Lost Ally 1460 | . . . . 60 40 60 20 10 30 . . 20 40 . 20 340 350 60 . 20 100 90 80 120 Purge Threat 996 | . . . . 271 . 150 . 150 . . . . . . . 150 . . . . . 275 . . Squads Dispatched 50 | . 5 . 5 5 . . . 2 . . . 1 . . . 13 . 9 . 2 . 2 . 6 Investigation 13 | . 3 . 1 1 . . . . . . . . . . . 2 . 5 . . . 1 . . Extermination 6 | . . . . . . . . . . . . . . . . 2 . 2 . 1 . . . 1 Reinforcement 20 | . 2 . 4 1 . . . . . . . 1 . . . 4 . 2 . 1 . 1 . 4 Assault 6 | . . . . 2 . . . . . . . . . . . 4 . . . . . . . . Garrison 5 | . . . . 1 . . . 2 . . . . . . . 1 . . . . . . . 1 Intercept . | . . . . . . . . . . . . . . . . . . . . . . . . . Searches Triggered . | . . . . . . . . . . . . . . . . . . . . . . . . . Construction Impeded 4 | . . . . . . . . . . . . . . . . 1 . . . 1 . 1 . 1 Haulers Reinforced 2 | . . . . . . . . . . . . 1 . . . . . . . . . . . 1 Active Scanning Responses . | . . . . . . . . . . . . . . . . . . . . . . . . . Cargo Convoy Interrupts 1 | . . . . . . . . . . . . . . . . . . . . 1 . . . . Stealth | -11 -10 -10 -9 -9 -9 -8 -8 -8 -8 -7 -7 -7 -7 -6 -6 -6 -6 -5 -5 -5 -5 -5 -5 -4 --------- Run | Yrd Mat Min Mat Sto Gar Mat Gar Mat Gar Fac Was Fac Gar Fac Gar Fac Gar Fac Was Fac Gar Fac Gar Fac Distress Signals 14 | . . . 3 2 . 2 1 . . . . . . . . 4 . 1 . 1 . . . . Communications Jammed . | . . . . . . . . . . . . . . . . . . . . . . . . . Distress Signals . | . . . . . . . . . . . . . . . . . . . . . . . . . Times Spotted 649 | . 26 12 50 49 17 24 45 7 36 . 3 6 54 . 28 39 93 15 1 28 35 10 41 30 Peak Tracking Total 14 | . 3 10 3 7 3 4 7 4 4 . 3 4 8 . 4 5 14 4 1 8 11 4 11 7 Tactical Retreats 48 | . 2 1 . 2 . . 2 . 4 . . . 2 . . 5 14 2 . 8 2 . 3 1 Traps | -11 -10 -10 -9 -9 -9 -8 -8 -8 -8 -7 -7 -7 -7 -6 -6 -6 -6 -5 -5 -5 -5 -5 -5 -4 ------- Run | Yrd Mat Min Mat Sto Gar Mat Gar Mat Gar Fac Was Fac Gar Fac Gar Fac Gar Fac Was Fac Gar Fac Gar Fac Traps Triggered 61 | . 2 . 1 2 2 . 11 . 11 1 . . 15 . . 1 6 1 . 1 4 . 3 . Indirectly . | . . . . . . . . . . . . . . . . . . . . . . . . . Trap Hack Attempts . | . . . . . . . . . . . . . . . . . . . . . . . . . Triggered . | . . . . . . . . . . . . . . . . . . . . . . . . . Disarmed . | . . . . . . . . . . . . . . . . . . . . . . . . . Reprogrammed . | . . . . . . . . . . . . . . . . . . . . . . . . . Reused . | . . . . . . . . . . . . . . . . . . . . . . . . . Traps Extracted . | . . . . . . . . . . . . . . . . . . . . . . . . . Installed . | . . . . . . . . . . . . . . . . . . . . . . . . . Triggered . | . . . . . . . . . . . . . . . . . . . . . . . . . Most Traps Carried 6 | . . 3 3 3 3 3 3 3 6 6 6 6 6 6 6 6 6 6 6 6 6 . . . Machines | -11 -10 -10 -9 -9 -9 -8 -8 -8 -8 -7 -7 -7 -7 -6 -6 -6 -6 -5 -5 -5 -5 -5 -5 -4 ---------- Run | Yrd Mat Min Mat Sto Gar Mat Gar Mat Gar Fac Was Fac Gar Fac Gar Fac Gar Fac Was Fac Gar Fac Gar Fac Machines Disabled 118 | . . 1 1 5 3 2 8 . 11 . . . 5 . 4 15 6 26 . 9 6 . 9 7 Max in Single Turn 12 | . . 1 1 1 1 2 1 . 1 . . . 1 . 1 12 1 . . 5 1 . 1 4 Garrison Access 4 | . . . . . . . . . . . . . . . . 1 . 1 . 2 . . . . Garrison Relay 37 | . . . . . 2 . 7 . 5 . . . 4 . 3 . 6 . . . 5 . 5 . Machines Repaired . | . . . . . . . . . . . . . . . . . . . . . . . . . Machines Dismantled . | . . . . . . . . . . . . . . . . . . . . . . . . . Machines Sabotaged . | . . . . . . . . . . . . . . . . . . . . . . . . . Overloaded Fab Kills . | . . . . . . . . . . . . . . . . . . . . . . . . . Hacking | -11 -10 -10 -9 -9 -9 -8 -8 -8 -8 -7 -7 -7 -7 -6 -6 -6 -6 -5 -5 -5 -5 -5 -5 -4 --------- Run | Yrd Mat Min Mat Sto Gar Mat Gar Mat Gar Fac Was Fac Gar Fac Gar Fac Gar Fac Was Fac Gar Fac Gar Fac Machines Accessed 92 | . 8 1 10 10 2 7 2 3 4 . . 1 2 3 1 7 4 11 . 6 2 3 2 3 Terminals 56 | . 6 . 8 8 2 5 2 1 4 . . . 2 . 1 4 4 1 . 1 2 1 2 2 Fabricators 9 | . . . . . . . . . . . . . . 1 . 1 . 4 . 2 . . . 1 Repair Stations 2 | . . . . 1 . . . . . . . . . . . . . 1 . . . . . . Recycling Units 2 | . 2 . . . . . . . . . . . . . . . . . . . . . . . Scanalyzers 11 | . . . 2 . . 1 . 1 . . . . . 1 . 1 . 4 . . . 1 . . Garrison Access 11 | . . . . 1 . 1 . 1 . . . 1 . 1 . 1 . 1 . 3 . 1 . . Total Hacks 240 | . 16 1 38 25 2 25 3 11 8 . . 1 4 11 2 12 5 41 . 13 3 7 4 8 Successful 133 | . 8 1 23 17 1 10 1 8 1 . . 1 1 8 2 5 3 28 . 8 2 3 1 1 Failed 107 | . 8 . 15 8 1 15 2 3 7 . . . 3 3 . 7 2 13 . 5 1 4 3 7 Catastrophic 28 | . 1 . 3 1 . 3 2 1 3 . . . 1 1 . 4 . 1 . 2 . 2 2 1 Database Lockouts . | . . . . . . . . . . . . . . . . . . . . . . . . . Manual 82 | . 15 . 23 6 . 19 . 2 . . . . . 3 1 1 . 7 . 5 . . . . Terminals 132 | . 14 . 28 19 2 20 3 2 8 . . . 4 . 2 7 5 2 . 2 3 2 4 5 Fabricators 21 | . . . . . . . . . . . . . . 1 . 1 . 9 . 7 . . . 3 Repair Stations 7 | . . . . 4 . . . . . . . . . . . . . 3 . . . . . . Recycling Units 2 | . 2 . . . . . . . . . . . . . . . . . . . . . . . Scanalyzers 57 | . . . 10 . . 3 . 6 . . . . . 6 . 2 . 26 . . . 4 . . Garrison Access 20 | . . . . 2 . 2 . 3 . . . 1 . 4 . 2 . 1 . 4 . 1 . . Terminal Hacks 36 | . . 1 7 9 1 2 1 1 1 . . . 1 . 2 2 3 1 . 1 2 . 1 . Part Schematic 6 | . . . 4 2 . . . . . . . . . . . . . . . . . . . . Robot Schematic 1 | . . . 1 . . . . . . . . . . . . . . . . . . . . . Prototype ID Bank 1 | . . . . 1 . . . . . . . . . . . . . . . . . . . . Open Door 9 | . . 1 . 3 . . 1 . . . . . 1 . . . 1 . . . 1 . 1 . Emergency Access Points 3 | . . . . . . . . . 1 . . . . . 1 . 1 . . . . . . . Terminal Index 1 | . . . . . . . . . . . . . . . . 1 . . . . . . . . Unreport Threat 5 | . . . . 2 . 1 . 1 . . . . . . . 1 . . . . . . . . Locate Traps 4 | . . . 1 1 . 1 . . . . . . . . . . . 1 . . . . . . Hauler Manifests 1 | . . . . . . . . . . . . . . . . . . . . 1 . . . . Zone Layout 1 | . . . 1 . . . . . . . . . . . . . . . . . . . . . Garrison Registry 2 | . . . . . 1 . . . . . . . . . 1 . . . . . . . . . Patrol Navigation 2 | . . . . . . . . . . . . . . . . . 1 . . . 1 . . . Fabricator Hacks 9 | . . . . . . . . . . . . . . . . 1 . 4 . 3 . . . 1 Network Status 2 | . . . . . . . . . . . . . . . . 1 . . . . . . . 1 Load Schematic 4 | . . . . . . . . . . . . . . . . . . 3 . 1 . . . . Build 3 | . . . . . . . . . . . . . . . . . . 1 . 2 . . . . Repair Station Hacks 4 | . . . . 4 . . . . . . . . . . . . . . . . . . . . Scan Component 2 | . . . . 2 . . . . . . . . . . . . . . . . . . . . Repair 2 | . . . . 2 . . . . . . . . . . . . . . . . . . . . Recycling Unit Hacks . | . . . . . . . . . . . . . . . . . . . . . . . . . Scanalyzer 45 | . . . 9 . . 3 . 6 . . . . . 6 . 1 . 18 . . . 2 . . Insert Component 21 | . . . 3 . . 1 . 3 . . . . . 2 . 1 . 10 . . . 1 . . Analyze 24 | . . . 6 . . 2 . 3 . . . . . 4 . . . 8 . . . 1 . . Garrison Access Hacks 11 | . . . . 1 . 1 . 1 . . . 1 . 1 . 1 . 1 . 3 . 1 . . Unlock Access 8 | . . . . 1 . 1 . 1 . . . 1 . 1 . 1 . . . 1 . 1 . . Seal Access 3 | . . . . . . . . . . . . . . . . . . 1 . 2 . . . . Unauthorized Hacks 27 | . 8 . 7 3 . 3 . . . . . . . 1 . . . 4 . 1 . . . . Terminals 18 | . 6 . 7 2 . 3 . . . . . . . . . . . . . . . . . . Assimilate 2 | . 1 . 1 . . . . . . . . . . . . . . . . . . . . . Botnet 2 | . . . . 2 . . . . . . . . . . . . . . . . . . . . Operators 2 | . . . 1 . . 1 . . . . . . . . . . . . . . . . . . Skim 12 | . 5 . 5 . . 2 . . . . . . . . . . . . . . . . . . Fabricators 4 | . . . . . . . . . . . . . . . . . . 3 . 1 . . . . Haulers 1 | . . . . . . . . . . . . . . . . . . . . 1 . . . . Recompile 3 | . . . . . . . . . . . . . . . . . . 3 . . . . . . Repair Stations 1 | . . . . . . . . . . . . . . . . . . 1 . . . . . . Patch 1 | . . . . . . . . . . . . . . . . . . 1 . . . . . . Recycling Units 2 | . 2 . . . . . . . . . . . . . . . . . . . . . . . Tunnel 2 | . 2 . . . . . . . . . . . . . . . . . . . . . . . Scanalyzers . | . . . . . . . . . . . . . . . . . . . . . . . . . Garrison Access 2 | . . . . 1 . . . . . . . . . 1 . . . . . . . . . . Redirect 1 | . . . . 1 . . . . . . . . . . . . . . . . . . . . Reprogram 1 | . . . . . . . . . . . . . . 1 . . . . . . . . . . Data Cores Recovered 2 | . . . . . . 2 . . . . . . . . . . . . . . . . . . Used . | . . . . . . . . . . . . . . . . . . . . . . . . . Hacking Detections 72 | . 6 . 10 9 2 7 1 3 4 . . . 1 3 . 6 1 7 . 4 1 2 2 3 Full Trace Events 8 | . . . 2 . . 2 . . 2 . . . . . . . . 1 . . . 1 . . Feedback Events 1 | . . . . . . . . . 1 . . . . . . . . . . . . . . . Corruption 1 | . . . . . . . . . 1 . . . . . . . . . . . . . . . Feedback Blocked . | . . . . . . . . . . . . . . . . . . . . . . . . . Robot Schematics Acquired 1 | . . . 1 . . . . . . . . . . . . . . . . . . . . . Robots Built . | . . . . . . . . . . . . . . . . . . . . . . . . . Authchips . | . . . . . . . . . . . . . . . . . . . . . . . . . Time . | . . . . . . . . . . . . . . . . . . . . . . . . . Total Robot Build Rating . | . . . . . . . . . . . . . . . . . . . . . . . . . Part Schematics Acquired 21 | . . . 7 2 . 1 . 3 . . . . . 2 . . . 6 . . . . . . Parts Built 3 | . . . . . . . . . . . . . . . . . . 1 . 2 . . . . Authchips 3 | . . . . . . . . . . . . . . . . . . 1 . 2 . . . . Time 330 | . . . . . . . . . . . . . . . . . . 50 . 280 . . . . Total Part Build Rating 18 | . . . . . . . . . . . . . . . . . . 5 . 13 . . . . Parts Repaired 2 | . . . . 2 . . . . . . . . . . . . . . . . . . . . Time 76 | . . . . 76 . . . . . . . . . . . . . . . . . . . . Parts Recycled . | . . . . . . . . . . . . . . . . . . . . . . . . . Recycled Matter . | . . . . . . . . . . . . . . . . . . . . . . . . . Retrieved Matter . | . . . . . . . . . . . . . . . . . . . . . . . . . Retrieved Components . | . . . . . . . . . . . . . . . . . . . . . . . . . Parts Scanalyzed 17 | . . . 3 . . 1 . 3 . . . . . 2 . 1 . 6 . . . 1 . . Part Schematics Acquired 15 | . . . 3 . . 1 . 3 . . . . . 2 . . . 6 . . . . . . Parts Damaged 2 | . . . . . . . . . . . . . . . . . . 2 . . . . . . Bothacking | -11 -10 -10 -9 -9 -9 -8 -8 -8 -8 -7 -7 -7 -7 -6 -6 -6 -6 -5 -5 -5 -5 -5 -5 -4 ------------ Run | Yrd Mat Min Mat Sto Gar Mat Gar Mat Gar Fac Was Fac Gar Fac Gar Fac Gar Fac Was Fac Gar Fac Gar Fac Used RIF Installer 10 | . . . . . 1 . 2 . 1 . . . 1 . 2 . 1 . . . 1 . 1 . Coupler Efficiency 1 | . . . . . . . . . . . . . . . 1 . . . . . . . . . Code Merge 1 | . . . . . . . . . . . . . . . . . 1 . . . . . . . Threat Obfuscator 2 | . . . . . . . . . . . . . 1 . 1 . . . . . . . . . Zone Cloak 1 | . . . . . . . . . . . . . . . . . . . . . 1 . . . Robot Detection 1 | . . . . . . . . . 1 . . . . . . . . . . . . . . . Structural Interface 1 | . . . . . . . 1 . . . . . . . . . . . . . . . . . Program Shield 1 | . . . . . . . 1 . . . . . . . . . . . . . . . . . Autoassimilate 1 | . . . . . . . . . . . . . . . . . . . . . . . 1 . Robots Hacked 142 | . . . . . 1 6 2 2 3 1 . 3 21 1 14 12 36 8 . 7 10 3 5 7 Non-combat 30 | . . . . . 1 5 2 2 . 1 . 3 . 1 . 10 . 3 . . . 1 . 1 Combat 112 | . . . . . . 1 . . 3 . . . 21 . 14 2 36 5 . 7 10 2 5 6 Autoassimilated 1 | . . . . . . . . . . . . . . . . . . . . . . . 1 . Robot Hacks Applied 167 | . . . . . 1 11 2 4 3 1 . 3 24 1 15 16 41 8 . 8 10 7 4 8 parse_system 7 | . . . . . . 2 . . . . . . 2 . . . 3 . . . . . . . find_chute 3 | . . . . . . . . . . 1 . . . . . . . 1 . . . . . 1 map_walls 1 | . . . . . . . . . . . . 1 . . . . . . . . . . . . map_earth 1 | . . . . . . . . . . . . . . . . 1 . . . . . . . . drop_inventory 14 | . . . . . . 3 . 2 . . . 2 . 1 . 4 . 2 . . . . . . locate_stockpiles 1 | . . . . . . 1 . . . . . . . . . . . . . . . . . . purge_threat 2 | . . . . . . . . . . . . . . . . . . . . . . 2 . . block_reporting 1 | . . . . . . . . . . . . . . . . . . . . . . 1 . . map_route 2 | . . . . . . 1 . . . . . . . . . 1 . . . . . . . . find_garrison 3 | . . . . . . . . . . . . . . . . 1 . . . 1 . 1 . . disrupt_area 1 | . . . . . . . . . 1 . . . . . . . . . . . . . . . spike_heat 1 | . . . . . . . . . . . . . . . . . . . . 1 . . . . amplify_resonance 27 | . . . . . . . . . . . . . 8 . 5 . 8 . . 2 . 1 1 2 reboot_system 26 | . . . . . . . . . . . . . 7 . 4 1 11 1 . 1 1 . . . overwrite_iff 18 | . . . . . . . . . . . . . 2 . . . 6 2 . 3 2 . 1 2 formatsys_low 16 | . . . . . 1 4 2 2 . . . . . . . 6 . . . . . 1 . . formatsys_high 43 | . . . . . . . . . 2 . . . 5 . 6 2 13 2 . . 7 1 2 3 Relay Couplers Released 160 | . . . . . 12 . 25 . 23 . . . 18 . 11 4 27 . . . 21 . 19 . Machine Destruction 152 | . . . . . 8 . 25 . 23 . . . 18 . 11 . 27 . . . 21 . 19 . Programmers 8 | . . . . . 4 . . . . . . . . . . 4 . . . . . . . . Attached 62 | . . . . . 1 1 1 1 2 . . 1 12 . 6 4 19 . . . 7 . 6 1 Merged Code Value 218 | . . . . . . . . . . . . . . . . . 82 . . . 66 . 70 . Fabnet Peak Effective % . | . . . . . . . . . . . . . . . . . . . . . . . . . Robots Rewired 23 | . . . . . . . 2 . . . . . 11 . . . 7 . . . 1 . 2 . Allies Hacked 2 | . . . . . . . . . . . . . . . . 2 . . . . . . . . Hacks Repelled . | . . . . . . . . . . . . . . . . . . . . . . . . . Allies | -11 -10 -10 -9 -9 -9 -8 -8 -8 -8 -7 -7 -7 -7 -6 -6 -6 -6 -5 -5 -5 -5 -5 -5 -4 -------- Run | Yrd Mat Min Mat Sto Gar Mat Gar Mat Gar Fac Was Fac Gar Fac Gar Fac Gar Fac Was Fac Gar Fac Gar Fac Total Allies 121 | . . 2 . 12 1 4 5 2 2 . . . 20 . 6 8 26 4 . 3 11 2 8 5 Largest Group 29 | . . 2 . 10 9 5 10 10 11 10 . 10 26 25 29 25 7 5 . 1 7 5 3 2 Highest-Rated Group 696 | . . 41 . 88 80 54 167 153 175 162 . 161 622 594 696 646 287 153 . 29 295 162 165 98 Highest-Rated Ally 99 | . . 31 . 31 16 16 25 23 23 23 . 23 95 95 76 71 51 41 . 29 99 49 62 49 Total Orders 352 | . . . . . 2 5 37 9 70 . . 4 77 20 98 20 3 2 . . 5 . . . STAY 151 | . . . . . . 1 10 . 43 . . . 25 . 65 1 2 1 . . 3 . . . ROAM 2 | . . . . . . . . . . . . . 1 . 1 . . . . . . . . . FOLLOW 63 | . . . . . . 2 8 . 7 . . . 19 . 20 3 1 1 . . 2 . . . GUARD 37 | . . . . . 1 . 2 2 4 . . 2 9 16 . 1 . . . . . . . . AID 47 | . . . . . 1 2 10 7 8 . . 2 8 4 3 2 . . . . . . . . DROP 10 | . . . . . . . . . . . . . 6 . 3 1 . . . . . . . . PICKUP 35 | . . . . . . . 6 . 8 . . . 8 . 6 7 . . . . . . . . COLLECT 7 | . . . . . . . 1 . . . . . 1 . . 5 . . . . . . . . Ally Attacks 651 | . . 10 . 33 61 18 4 8 21 . . 15 32 . 37 129 109 35 . 10 35 26 40 28 Total Damage 15287 | . . 108 . 474 497 163 77 151 188 . . 194 859 . 534 3030 3517 2239 . 78 731 440 1050 957 Kills 133 | . . 1 . 6 9 1 1 4 3 . . 2 8 . 10 29 21 16 . . 5 2 7 8 Allies Corrupted 4 | . . . . . . . . . . . . . . . . 2 2 . . . . . . . Allies Melted 1 | . . . . . . . . . . . . . . . . . . 1 . . . . . . Intel | -11 -10 -10 -9 -9 -9 -8 -8 -8 -8 -7 -7 -7 -7 -6 -6 -6 -6 -5 -5 -5 -5 -5 -5 -4 ------- Run | Yrd Mat Min Mat Sto Gar Mat Gar Mat Gar Fac Was Fac Gar Fac Gar Fac Gar Fac Was Fac Gar Fac Gar Fac Active Infowar (turns) 7928 | 379 871 . . . . . . . . 37 20 407 2555 180 1250 987 1106 . . 134 . . . 2 Optics 6540 | . . . . . . . . . . 35 20 407 2555 180 1250 987 1106 . . . . . . . IFF 520 | . . . . . . . . . . 37 20 310 2 147 4 . . . . . . . . . Terrain 2 | . . . . . . . . . . . . . . . . . . . . . . . . 2 Seismic 1250 | 379 871 . . . . . . . . . . . . . . . . . . . . . . . Jamming 134 | . . . . . . . . . . . . . . . . . . . . 134 . . . . Robot Analysis Total . | . . . . . . . . . . . . . . . . . . . . . . . . . Derelict Logs Recovered 1 | . . 1 . . . . . . . . . . . . . . . . . . . . . . Drone Launches . | . . . . . . . . . . . . . . . . . . . . . . . . . Drone Recoveries . | . . . . . . . . . . . . . . . . . . . . . . . . . Exploration | -11 -10 -10 -9 -9 -9 -8 -8 -8 -8 -7 -7 -7 -7 -6 -6 -6 -6 -5 -5 -5 -5 -5 -5 -4 ------------- Run | Yrd Mat Min Mat Sto Gar Mat Gar Mat Gar Fac Was Fac Gar Fac Gar Fac Gar Fac Was Fac Gar Fac Gar Fac Turns Passed 39503 | 890 2208 1838 2605 2354 759 5535 2969 248 3809 44 20 407 2555 180 1250 987 2580 490 662 907 3234 352 2144 476 Spaces Moved 31618 | 460 1187 1019 1416 1142 491 1329 1880 142 1798 40 69 501 4498 263 1967 2115 4559 907 738 1656 1644 184 1364 249 Core 446 | 10 . . . . . 395 . . . . . 3 . . . . . . 38 . . . . . Treads 6525 | 450 1187 552 1391 673 . 165 65 . 886 . . . . . . . . . . . 805 184 167 . Legs 1728 | . . . . . . . . . . . . . . . . . . . . . 282 . 1197 249 Wheels 5090 | . . 467 25 469 491 769 1815 142 912 . . . . . . . . . . . . . . . Hover . | . . . . . . . . . . . . . . . . . . . . . . . . . Flight 17829 | . . . . . . . . . . 40 69 498 4498 263 1967 2115 4559 907 700 1656 557 . . . Fastest Speed 24 | 50 160 105 105 120 90 105 105 120 105 28 28 26 26 24 25 25 24 39 39 37 37 160 114 112 Average Speed 92 | 157 160 130 156 149 105 359 123 120 176 28 28 28 26 25 25 25 29 39 67 39 169 160 124 114 Slowest Speed 850 | 160 160 160 160 240 135 850 330 120 243 28 28 300 26 26 25 25 109 119 600 122 715 160 240 120 Overloaded Moves . | . . . . . . . . . . . . . . . . . . . . . . . . . Propulsion Burnouts . | . . . . . . . . . . . . . . . . . . . . . . . . . Robots Hopped 35 | . . . . . . . . . . . 1 3 7 1 . 6 4 6 1 6 . . . . Potential Cave-ins . | . . . . . . . . . . . . . . . . . . . . . . . . . Cave-ins Triggered . | . . . . . . . . . . . . . . . . . . . . . . . . . Exploration Rate (%) 59 | 19 99 98 96 93 56 57 96 19 97 2 74 10 99 9 71 38 98 25 97 32 98 5 98 7 Regions Visited 24 Branch Regions 2 Pre-discovered Areas 4 | . 2 . 2 . . . . . . . . . . . . . . . . . . . . . Known Exits Taken 11 | . 1 1 1 1 . 1 . 1 . . . 1 . 1 . 1 . . . 1 . 1 . . Unknown Exits Taken 1 | 1 . . . . . . . . . . . . . . . . . . . . . . . . Scrap Searched 1 | . . 1 . . . . . . . . . . . . . . . . . . . . . . Spaces Dug 262 | . . 17 1 4 . 2 130 . 7 3 . . 13 . 16 8 . 2 . 7 27 2 22 1 Terrain Destroyed 1048 | . 18 116 4 4 11 74 198 25 91 3 . . 15 . 17 41 21 6 3 43 157 12 159 30 Melee 66 | . . . 1 4 . 2 13 . . 3 . . 13 . 16 8 . . . 5 . . . 1 Projectile 148 | . . 2 3 . . 1 5 2 7 . . . 2 . 1 2 21 6 3 12 18 12 37 14 AOE 834 | . 18 114 . . 11 71 180 23 84 . . . . . . 31 . . . 26 139 . 122 15 Terrain Rammed . | . . . . . . . . . . . . . . . . . . . . . . . . . Walls Destroyed . | . . . . . . . . . . . . . . . . . . . . . . . . . Machines Disabled . | . . . . . . . . . . . . . . . . . . . . . . . . . Actions | -11 -10 -10 -9 -9 -9 -8 -8 -8 -8 -7 -7 -7 -7 -6 -6 -6 -6 -5 -5 -5 -5 -5 -5 -4 --------- Run | Yrd Mat Min Mat Sto Gar Mat Gar Mat Gar Fac Was Fac Gar Fac Gar Fac Gar Fac Was Fac Gar Fac Gar Fac Total 39082 | 529 1388 1495 1644 1572 630 1994 2276 196 2197 71 67 721 5568 374 2632 2457 5496 1014 808 1803 1931 216 1641 362 Wait 4049 | 1 92 430 77 264 25 570 175 22 185 . . 171 577 94 545 223 353 43 3 43 70 . 72 14 Move 31530 | 459 1186 1018 1415 1141 490 1329 1879 142 1797 40 66 494 4483 260 1966 2103 4550 895 735 1643 1643 184 1363 249 Hop 34 | . . . . . . . . . . . 1 3 7 1 . 5 4 6 1 6 . . . . Pick Up 241 | 9 18 4 9 7 7 10 3 6 21 2 . 3 27 5 13 7 21 10 2 11 26 1 15 4 Fast Attach 132 | 7 1 . 3 3 1 1 2 . 3 . . 5 11 3 3 9 22 5 2 6 21 1 18 5 Attach 85 | . . . 2 . 1 3 1 . 10 7 . 2 3 1 3 6 13 7 2 1 8 1 9 5 Detach 14 | . . . . . . . . . . . . . 1 . . 2 2 4 . . 3 . 2 . Swap 444 | . 8 12 38 31 26 22 38 7 32 4 . 10 33 2 17 10 34 7 6 21 24 4 38 20 Drop 315 | 1 16 4 27 23 8 9 3 3 23 14 . 11 29 6 14 10 35 11 3 12 21 3 24 5 Fire 1363 | 52 64 21 71 86 33 48 91 16 73 1 . 9 170 2 39 54 201 26 26 37 94 22 70 57 Melee 347 | . . . 1 16 17 2 29 . 41 3 . 13 31 . 32 28 55 . 28 22 15 . 13 1 Ram . | . . . . . . . . . . . . . . . . . . . . . . . . . Kick 3 | . . . . . . . . . . . . . . . . . . . . . . . 1 2 Crush 11 | . 3 6 1 1 . . . . . . . . . . . . . . . . . . . . Escape Stasis 372 | . . . . . 22 . 55 . 12 . . . 196 . . . 81 . . 1 4 . 1 . Rewire 142 | . . . . . . . . . . . . . . . . . 125 . . . 2 . 15 . Trap . | . . . . . . . . . . . . . . . . . . . . . . . . . Miscellaneous . | . . . . . . . . . . . . . . . . . . . . . . . . . Route ------- -11/Scrapyard -10/Materials (discovered 5 exits: *Mat x3 / *Min / *Sub) -10/Mines (discovered 3 exits: *Mat x2 / Sub) -9/Materials (discovered 7 exits: *Mat x3 / [*Min x2] / *Sto x2) -9/Storage (discovered 3 exits: *Mat / *Rec / Gar) -9/Garrison (discovered 3 exits: *Mat x3) -8/Materials (discovered 3 exits: [*Fac x2] / Gar) -8/Garrison (discovered 3 exits: *Mat x3) -8/Materials -8/Garrison (discovered 3 exits: [*Fac x3]) -7/Factory -7/Waste -7/Factory (discovered 2 exits: [*Low] / Gar) -7/Garrison (discovered 3 exits: *Fac x3) -6/Factory -6/Garrison (discovered 3 exits: *Fac x3) -6/Factory (discovered 2 exits: *Fac / Gar) -6/Garrison (discovered 3 exits: *Fac x3) -5/Factory -5/Waste -5/Factory (discovered 4 exits: *Fac x2 / [*Ext] / Gar) -5/Garrison (discovered 3 exits: *Fac x3) -5/Factory (discovered 2 exits: *Fac / Gar) -5/Garrison (discovered 3 exits: *Fac x3) -4/Factory (discovered 1 exit: [*Upp]) History --------- Turn | Location | Event 4 | -11/Scrapyard | Discovered new exit (range 16) 891 | -11/Scrapyard | Entered Materials 892 | -10/Materials | Build established: Mutant 1044 | -10/Materials | Discovered new exit (range 4) 1219 | -10/Materials | Discovered new exit (range 9) 1491 | -10/Materials | Derelicts attacked the area 1678 | -10/Materials | Discovered new exit (range 11) 2160 | -10/Materials | Discovered new exit (range 5) 2622 | -10/Materials | Discovered new exit (range 15) 2793 | -10/Materials | Learned 2 Mines zone layouts 2891 | -10/Materials | Identified exit to Mines 2891 | -10/Materials | Identified exit to Materials 3079 | -10/Materials | Learned 2 Storage zone layouts 3099 | -10/Materials | Entered Mines 3100 | -10/Mines | Identified exit to Subcaves 3104 | -10/Mines | Met a Derelict who couldn't figure out how to use a Trap Extractor 3319 | -10/Mines | Discovered exit to Materials (range 8) 3627 | -10/Mines | Found a hidden stash of uninstalled traps 4045 | -10/Mines | Assembled infested the area 4737 | -10/Mines | Discovered exit to Materials (range 8) 4937 | -10/Mines | Entered Materials 4937 | -9/Materials | Evolved 2 slots: Propulsion x1, Weapon x1 4938 | -9/Materials | Identified exit to Storage 5235 | -9/Materials | Build established: Tank 5358 | -9/Materials | Discovered new exit (range 10) 5546 | -9/Materials | Build established: Gunner 5838 | -9/Materials | Discovered new exit (range 4) 5871 | -9/Materials | Build established: Scavenger-Gunner 5882 | -9/Materials | Discovered new exit (range 6) 6160 | -9/Materials | Discovered new exit (range 12) 6528 | -9/Materials | Build established: Gunner 6552 | -9/Materials | Discovered new exit (range 12) 7090 | -9/Materials | Learned location of Zion (-6) 7155 | -9/Materials | Learned Storage garrison access intel 7171 | -9/Materials | Learned location of Storage (-9) 7184 | -9/Materials | Loaded intel: 63 machine locations 7201 | -9/Materials | Learned 2 Storage zone layouts 7542 | -9/Materials | Entered Storage 7543 | -9/Storage | Identified exit to Materials 7543 | -9/Storage | Identified exit to Recycling 7545 | -9/Storage | Loaded intel: 1 garrison access location 7652 | -9/Storage | Build established: Mutant 8029 | -9/Storage | Used back door to open Recycling access 8131 | -9/Storage | Build established: Scavenger-Gunner 8290 | -9/Storage | Repaired Flak Cannon 8329 | -9/Storage | Repaired Hrd. Medium Armor Plating 9226 | -9/Storage | Build established: Gunner 9394 | -9/Storage | Identified exit to Garrison 9447 | -9/Storage | Met a pair of Derelict thieves 9732 | -9/Storage | Assisted by bots powering up and referring to "LRC-V3" 9819 | -9/Storage | Garrison activated, responded to threat 9896 | -9/Storage | Entered Garrison 9896 | -9/Garrison | Accompanied by 9 allies 9938 | -9/Garrison | Triggered checkpoint 9975 | -9/Garrison | Garrison Relay disabled 10049 | -9/Garrison | Triggered checkpoint 10069 | -9/Garrison | Triggered checkpoint 10089 | -9/Garrison | Triggered checkpoint 10099 | -9/Garrison | Triggered checkpoint 10123 | -9/Garrison | Destroyed 9 combat bots 10183 | -9/Garrison | Discovered exit to Materials (range 56) 10183 | -9/Garrison | Discovered exit to Materials (range 59) 10183 | -9/Garrison | Discovered exit to Materials (range 14) 10191 | -9/Garrison | Triggered checkpoint 10217 | -9/Garrison | Garrison Relay disabled 10319 | -9/Garrison | Installed Relay Interface Framework 10457 | -9/Garrison | Core integrity fell below 50% 10462 | -9/Garrison | P-60 Hacker assimilated allied Mercenary 2i 10612 | -9/Garrison | Build established: Commander-Gunner 10655 | -9/Garrison | Entered Materials 10655 | -8/Materials | Accompanied by 5 allies 10655 | -8/Materials | Evolved 2 slots: Utility x1, Weapon x1 10959 | -8/Materials | Build established: Commander-Tank 11754 | -8/Materials | Discovered new exit (range 4) 11776 | -8/Materials | Build established: Tank 16044 | -8/Materials | Discovered new exit (range 53) 16185 | -8/Materials | Identified exit to Garrison 16190 | -8/Materials | Entered Garrison 16190 | -8/Garrison | Accompanied by 5 allies 16191 | -8/Garrison | Identified exit to Materials 16235 | -8/Garrison | Triggered checkpoint 16259 | -8/Garrison | Build established: Commander-Tank 16265 | -8/Garrison | Garrison Relay disabled 16273 | -8/Garrison | Garrison Relay disabled 16434 | -8/Garrison | Triggered checkpoint 16550 | -8/Garrison | Triggered checkpoint 16607 | -8/Garrison | Triggered checkpoint 16638 | -8/Garrison | Triggered checkpoint 16700 | -8/Garrison | Triggered checkpoint 16754 | -8/Garrison | Destroyed 7 combat bots 16852 | -8/Garrison | Triggered checkpoint 16884 | -8/Garrison | Garrison Relay disabled 17071 | -8/Garrison | Triggered checkpoint 17191 | -8/Garrison | Destroyed 7 combat bots 17205 | -8/Garrison | Garrison Relay disabled 17265 | -8/Garrison | Expanded RIF knowledge: Structural Interface 17302 | -8/Garrison | Garrison Relay disabled 17367 | -8/Garrison | Discovered exit to Materials (range 9) 17457 | -8/Garrison | Build established: Commander-Gunner 18162 | -8/Garrison | Triggered checkpoint 18312 | -8/Garrison | Discovered exit to Materials (range 11) 18379 | -8/Garrison | Build established: Commander-Tank 18402 | -8/Garrison | Rescued a captive Derelict 18634 | -8/Garrison | Expanded RIF knowledge: Program Shield 18953 | -8/Garrison | Garrison Relay disabled 18968 | -8/Garrison | Garrison Relay disabled 19159 | -8/Garrison | Entered Materials 19159 | -8/Materials | Accompanied by 9 allies 19244 | -8/Materials | Garrison activated, responded to threat 19385 | -8/Materials | Identified exit to Garrison 19407 | -8/Materials | Entered Garrison 19407 | -8/Garrison | Accompanied by 10 allies 19452 | -8/Garrison | Expanded RIF knowledge: Robot Detection 19939 | -8/Garrison | Triggered checkpoint 20053 | -8/Garrison | Garrison Relay disabled 20172 | -8/Garrison | Triggered checkpoint 20226 | -8/Garrison | Triggered checkpoint 20258 | -8/Garrison | Triggered checkpoint 20279 | -8/Garrison | Triggered checkpoint 20512 | -8/Garrison | Discovered new exit (range 10) 20728 | -8/Garrison | Spotted B-75 Beast 20758 | -8/Garrison | Destroyed B-75 Beast 21153 | -8/Garrison | Discovered new exit (range 10) 21347 | -8/Garrison | Garrison Relay disabled 21615 | -8/Garrison | Core integrity fell below 50% 21678 | -8/Garrison | Discovered new exit (range 9) 21901 | -8/Garrison | Garrison Relay disabled 21913 | -8/Garrison | Triggered checkpoint 22834 | -8/Garrison | Build established: Commander-Mutant 23174 | -8/Garrison | System corruption reached 10% 23216 | -8/Garrison | Entered Factory 23216 | -7/Factory | Accompanied by 10 allies 23216 | -7/Factory | Evolved 2 slots: Propulsion x1, Utility x1 23260 | -7/Factory | Manually triggered Chute Trap 23260 | -7/Factory | Sucked down chute 23260 | -7/Factory | Entered Waste 23269 | -7/Waste | Spotted C-40 Crusher 23271 | -7/Waste | Spotted C-40 Crusher 23271 | -7/Waste | Spotted C-40 Crusher 23273 | -7/Waste | Spotted C-40 Crusher 23275 | -7/Waste | EMP discharged 23275 | -7/Waste | Crushed by Compactor (0 parts destroyed, 1 dropped) 23276 | -7/Waste | Discovered new exit (range 11) 23280 | -7/Waste | Entered Factory 23311 | -7/Factory | Discovered new exit (range 16) 23560 | -7/Factory | 10 allies followed down the chute 23643 | -7/Factory | Identified exit to Garrison 23683 | -7/Factory | Build established: Commander-Sprinter 23687 | -7/Factory | Entered Garrison 23687 | -7/Garrison | Accompanied by 9 allies 23870 | -7/Garrison | Garrison Relay disabled 23900 | -7/Garrison | Triggered checkpoint 24065 | -7/Garrison | Discovered new exit (range 3) 24188 | -7/Garrison | Triggered checkpoint 24494 | -7/Garrison | Triggered checkpoint 24687 | -7/Garrison | Triggered checkpoint 24760 | -7/Garrison | Garrison Relay disabled 24772 | -7/Garrison | Triggered checkpoint 24776 | -7/Garrison | Triggered checkpoint 24964 | -7/Garrison | Garrison Relay disabled 24976 | -7/Garrison | Discovered new exit (range 15) 24980 | -7/Garrison | Found embedded Infiltrators 25025 | -7/Garrison | Triggered checkpoint 25056 | -7/Garrison | Triggered checkpoint 25236 | -7/Garrison | Discovered new exit (range 12) 25239 | -7/Garrison | Expanded RIF knowledge: Threat Obfuscation 25267 | -7/Garrison | Garrison Relay disabled 25272 | -7/Garrison | Triggered checkpoint 25328 | -7/Garrison | System corruption reached 10% 25371 | -7/Garrison | Triggered checkpoint 26242 | -7/Garrison | Entered Factory 26242 | -6/Factory | Accompanied by 25 allies 26242 | -6/Factory | Evolved 2 slots: Propulsion x1, Utility x1 26330 | -6/Factory | Spotted B-75 Beast 26346 | -6/Factory | Identified exit to Garrison 26422 | -6/Factory | Entered Garrison 26422 | -6/Garrison | Accompanied by 24 allies 26444 | -6/Garrison | Expanded RIF knowledge: Coupler Efficiency 26489 | -6/Garrison | Warlord forces raided the area 26490 | -6/Garrison | Triggered checkpoint 26637 | -6/Garrison | Triggered checkpoint 26710 | -6/Garrison | Triggered checkpoint 26720 | -6/Garrison | Garrison Relay disabled 26748 | -6/Garrison | Spotted B-75 Beast 26770 | -6/Garrison | Allies destroyed B-75 Beast 26801 | -6/Garrison | Discovered new exit (range 28) 26801 | -6/Garrison | Discovered new exit (range 51) 26801 | -6/Garrison | Discovered new exit (range 55) 26808 | -6/Garrison | Expanded RIF knowledge: Threat Obfuscation 26812 | -6/Garrison | Triggered checkpoint 26827 | -6/Garrison | Garrison Relay disabled 26856 | -6/Garrison | Triggered checkpoint 26856 | -6/Garrison | Garrison Relay disabled 26925 | -6/Garrison | Found Unknown Launcher 26925 | -6/Garrison | Identified Gamma Bomb Array 26932 | -6/Garrison | Found Gamma Bomb Array 27009 | -6/Garrison | Lost 4 allies 27672 | -6/Garrison | Entered Factory 27672 | -6/Factory | Accompanied by 25 allies 27768 | -6/Factory | Lost 6 allies 28174 | -6/Factory | Garrison activated, responded to threat 28202 | -6/Factory | Lost 3 parts (3w) 28214 | -6/Factory | Lost 4 allies 28288 | -6/Factory | System corruption reached 10% 28347 | -6/Factory | Discovered new exit (range 19) 28372 | -6/Factory | First assault squad dispatched 28586 | -6/Factory | Lost 3 parts (1p2u) 28601 | -6/Factory | Identified exit to Garrison 28659 | -6/Factory | Entered Garrison 28659 | -6/Garrison | Accompanied by 1 ally 28669 | -6/Garrison | Triggered checkpoint 28714 | -6/Garrison | Build established: Sprinter 28748 | -6/Garrison | Garrison Relay disabled 28749 | -6/Garrison | Triggered checkpoint 28871 | -6/Garrison | Core integrity fell below 50% 29077 | -6/Garrison | P-60 Hacker assimilated allied 3H-7RA(g) 29087 | -6/Garrison | Spotted B-75 Beast 29091 | -6/Garrison | Triggered checkpoint 29155 | -6/Garrison | Triggered checkpoint 29160 | -6/Garrison | Triggered checkpoint 29171 | -6/Garrison | Garrison Relay disabled 29266 | -6/Garrison | Lost 5 allies 29283 | -6/Garrison | Triggered checkpoint 29321 | -6/Garrison | Discovered new exit (range 18) 29440 | -6/Garrison | Expanded RIF knowledge: Code Merge 29442 | -6/Garrison | Garrison Relay disabled 29476 | -6/Garrison | Triggered checkpoint 29511 | -6/Garrison | Garrison Relay disabled 29884 | -6/Garrison | Discovered new exit (range 14) 29908 | -6/Garrison | Garrison Relay disabled 29961 | -6/Garrison | Spotted B-75 Beast 30034 | -6/Garrison | Lost 3 allies 30182 | -6/Garrison | Destroyed B-75 Beast 30261 | -6/Garrison | Build established: Botlord-Sprinter 30386 | -6/Garrison | Triggered checkpoint 30455 | -6/Garrison | Garrison Relay disabled 30459 | -6/Garrison | Triggered checkpoint 30531 | -6/Garrison | Discovered new exit (range 14) 30596 | -6/Garrison | Build established: Botlord-Gunner 30784 | -6/Garrison | Core integrity fell below 20% 30878 | -6/Garrison | Lost 3 allies 31239 | -6/Garrison | Entered Factory 31239 | -5/Factory | Accompanied by 4 allies 31239 | -5/Factory | Evolved 2 slots: Propulsion x1, Utility x1 31514 | -5/Factory | Fabricated Antimatter Cannon (x1) 31558 | -5/Factory | Spotted B-75 Beast 31645 | -5/Factory | Lost 4 allies 31729 | -5/Factory | Sucked down chute 31729 | -5/Factory | Entered Waste 31729 | -5/Waste | The area was eerily silent 31769 | -5/Waste | Found Prototype Device 31787 | -5/Waste | Identified Femtoactuators 31819 | -5/Waste | A Compactor rumbled back to life 31829 | -5/Waste | Spotted C-40 Crusher 31867 | -5/Waste | Build established: Gunner 31879 | -5/Waste | Destroyed C-40 Crusher 31903 | -5/Waste | Discovered new exit (range 14) 32391 | -5/Waste | Entered Factory 32644 | -5/Factory | Discovered new exit (range 3) 32646 | -5/Factory | Identified exit to Factory 32714 | -5/Factory | Discovered exit to Factory (range 5) 32734 | -5/Factory | Fabricated Fusion Bomb Launcher? 32738 | -5/Factory | Discovered new exit (range 15) 32794 | -5/Factory | Fabricated Antimatter Cannon? 32978 | -5/Factory | Cargo convoy interrupted 33273 | -5/Factory | Spotted B-75 Beast 33287 | -5/Factory | Identified exit to Garrison 33298 | -5/Factory | Entered Garrison 33319 | -5/Garrison | Expanded RIF knowledge: Zone Cloak 33444 | -5/Garrison | Triggered checkpoint 33455 | -5/Garrison | Garrison Relay disabled 33555 | -5/Garrison | Core integrity fell below 50% 33643 | -5/Garrison | Lost 6 parts (1p2n3w) 33940 | -5/Garrison | Triggered checkpoint 33948 | -5/Garrison | Triggered checkpoint 34024 | -5/Garrison | Garrison Relay disabled 34076 | -5/Garrison | Discovered new exit (range 9) 34222 | -5/Garrison | Build established: Scavenger-Mutant 34452 | -5/Garrison | System corruption reached 10% 34459 | -5/Garrison | Discovered new exit (range 10) 34484 | -5/Garrison | Garrison Relay disabled 34514 | -5/Garrison | Triggered checkpoint 34545 | -5/Garrison | Garrison Relay disabled 34782 | -5/Garrison | Build established: Botlord-Gunner 34810 | -5/Garrison | Garrison Relay disabled 34822 | -5/Garrison | Triggered checkpoint 34853 | -5/Garrison | Spotted Executioner 34886 | -5/Garrison | Destroyed Executioner 34933 | -5/Garrison | Found Prototype Processor 34948 | -5/Garrison | Rewired Striker 35002 | -5/Garrison | Discovered new exit (range 2) 35178 | -5/Garrison | Rescued a captive Derelict 35290 | -5/Garrison | Triggered checkpoint 35434 | -5/Garrison | Triggered checkpoint 35511 | -5/Garrison | Identified Exp. Targeting Computer 35697 | -5/Garrison | Spotted B-75 Beast 35702 | -5/Garrison | Allies destroyed B-75 Beast 35814 | -5/Garrison | Found Unknown Hackware 35819 | -5/Garrison | Found Unknown Hackware 35821 | -5/Garrison | Found Unknown Hackware 35825 | -5/Garrison | Found Unknown Hackware 36532 | -5/Garrison | Entered Factory 36532 | -5/Factory | Accompanied by 3 allies 36579 | -5/Factory | Discovered exit to Factory (range 7) 36882 | -5/Factory | Lost 4 allies 36884 | -5/Factory | Identified exit to Garrison 36884 | -5/Factory | Entered Garrison 36934 | -5/Garrison | Triggered checkpoint 36956 | -5/Garrison | Garrison Relay disabled 37020 | -5/Garrison | Spotted Striker 37020 | -5/Garrison | Spotted Executioner 37071 | -5/Garrison | Triggered checkpoint 37109 | -5/Garrison | Core integrity fell below 20% 37189 | -5/Garrison | Triggered checkpoint 37223 | -5/Garrison | Triggered checkpoint 37269 | -5/Garrison | Lost 5 parts (1p3n1w) 37279 | -5/Garrison | Destroyed 16 combat bots 37325 | -5/Garrison | Lost 4 parts (1u3w) 37550 | -5/Garrison | Expanded RIF knowledge: Autoassimilate 37581 | -5/Garrison | Discovered exit to Factory (range 5) 37602 | -5/Garrison | Found embedded Infiltrators 37607 | -5/Garrison | Triggered checkpoint 37661 | -5/Garrison | Garrison Relay disabled 37786 | -5/Garrison | Triggered checkpoint 37797 | -5/Garrison | Spotted B-75 Beast 37849 | -5/Garrison | Lost 3 allies 37929 | -5/Garrison | Garrison Relay disabled 37961 | -5/Garrison | Discovered exit to Factory (range 15) 37979 | -5/Garrison | Build established: Botlord-Tank 38137 | -5/Garrison | Triggered checkpoint 38183 | -5/Garrison | Garrison Relay disabled 38368 | -5/Garrison | Triggered checkpoint 38424 | -5/Garrison | Discovered exit to Factory (range 11) 38591 | -5/Garrison | Garrison Relay disabled 38652 | -5/Garrison | Build established: Botlord-Gunner 39028 | -5/Garrison | Entered Factory 39028 | -4/Factory | Accompanied by 2 allies 39028 | -4/Factory | Evolved 2 slots: Utility x2 39339 | -4/Factory | Build established: Botlord-Tank 39371 | -4/Factory | Lost 3 allies 39410 | -4/Factory | Garrison activated, responded to threat 39412 | -4/Factory | Lost 6 parts (2n4u) 39428 | -4/Factory | Discovered new exit (range 15) 39504 | -4/Factory | Self-destructed Last Messages --------------- 39491_ Slug penetrates Wall. 39492_ Imp. VSS Leg destroyed. 39492_ Knocked back. 39493_ Acquired KE Penetrator. 39494_ Knocked back. 39494_ Slug penetrates Wall. 39494_ KE Penetrator destroyed. 39494_ Slug penetrates Wall. 39496_ KE Penetrator destroyed. 39496_ Knocked back. 39497_ Slug penetrates H-71 Marshal. 39498_ Flexi-carbon Leg destroyed. 39498_ Knocked back. 39499_ Acquired 10 matter. 39499_ Slug penetrates H-71 Marshal. 39501_ Critical hit (Destroy). 39501_ Flexi-carbon Leg destroyed. 39502_ Penetrated by Slug. 39502_ Slug penetrates H-71 Marshal. 39504_ Slug penetrates Wall. Map ----- +----------------------------------------------------+ | ?????????????????????????????????????????????????? | | ?????????????????????????????????????????????????? | | ?????????????????????????????????????????????????? | | ?????????????????????????????????????????????????? | | ?????????????????????????????????????????????????? | | ???????????????????????? ??????????????????????? | | ???????????????????????? ??????????????????????? | | ?????????????????? ????# ^??????????????????????? | | ?????????????????? ???# ^#?????????????????????? | | ??????????????????#/#??# #?????????????????????? | | ??????????????????? ??# #?????????????????????? | | ???????????????????? ?# #????? ???????????????? | | ???????????????????? h?# #????? ???????????????? | | ????????????????????? ## ##????"???????????????? | | ??????????????????+###; [ ;???? ???????????????? | | ??????????????????? = !%! ##??? ???????????????? | | ???????????????????? !%[[==H ???? ???????????????? | | ????????????????????? h%[%!#?##? ???????????????? | | ??????????????????????#!!=! ## ## #??????????????? | | ??????????????????#####;%=!;#;### #??????????????? | | ??????????????????# [|[ # #?????????????? | | ??????????????????# !! + < +?????????????? | | ??????????????????# % #[!=??????????????? | | ??????????????????# ##%#??????????????? | | ??????????????????# ## #??????????????? | | ??????????????????# " "@" " ; #??????????????? | | ??????????????????# " "" "" " ## #??????????????? | | ??????????????????# """" """" ##%#??????????????? | | ??????????????????# """" """" ##=#??#???????????? | | ??????????????????# """" """" ##%#?? ???????????? | | ??????????????????# ?"""" """" ##=### "??????????? | | ?????????????????????? ##=! + "??????????? | | ???????????????????????#####?####%### "???"""????? | | ????????????????????????????????#=#?# ????? | | ????????????????????????????????# ### """ """ "??? | | ????????????????????????????????#=# # """ """ ""?? | | ????????????????????????????????#!#=# """ """ """ | | ????????????????????????????????#[#*# | | ???????????????????????????????##[%## = | | ??????????????????###+##???????#%=[!# | | ?????????????????# ########[]!#" "###### | | ????????????????## =[[[==![ | | ????????????????? " = =!%==%=* [ | | ????????????????? "T !!!==!! | | ????????????????? *! [ | | ?????????????????# | | ?????????????????# !######### | | ?????????????????## ss s?######## | | ??????????????????# s?# = =| | | ??????????????????# ??# # | +----------------------------------------------------+ Best States ------------- Heat Dissipation 71 Energy Generation 29 Energy Capacity 510 Matter Stores 450 Matter Capacity 550 Sight Range 20 Terrain Scan Density 10 Jamming Range 14 Armor Coverage 225 Weapon Cycling 25 Evasion (%) 65 Targeting Accuracy 12 Target Analysis 6 Core Analysis 6 Recoil Reduction 5 Offensive Hacking 10 Defensive Hacking 14 Relay Coupler Types 5 Relay Coupler Value 213 Authchip Count 2 Trap Extractor Capacity 6 Item Schematics ----------------- Actuator Array | -9/Materials | Scanalyzed Lgt. Treads | -9/Materials | Hacked Lgt. Assault Rifle | -9/Materials | Hacked Heat Sink | -9/Materials | Hacked Arm. Wheel | -9/Materials | Hacked Imp. Flight Unit | -9/Materials | Scanalyzed Datajack | -9/Materials | Scanalyzed Core Analyzer | -9/Storage | Hacked Gatling Laser | -9/Storage | Hacked Imp. VTOL Module | -8/Materials | Scanalyzed Imp. Trap Extractor | -8/Materials | Scanalyzed Adv. Visual Processing Unit | -8/Materials | Scanalyzed Com. Matter Pod | -8/Materials | Scanalyzed Mic. Fission Core | -6/Factory | Scanalyzed Recoil Stabilizer | -6/Factory | Scanalyzed Impulse Thruster Array | -5/Factory | Scanalyzed Antimatter Cannon | -5/Factory | Scanalyzed Imp. Cesium-ion Thruster | -5/Factory | Scanalyzed Enh. Force Lance | -5/Factory | Scanalyzed Adv. Remote Datajack | -5/Factory | Scanalyzed KE Penetrator | -5/Factory | Scanalyzed Robot Schematics ------------------ M-13 Machinist | -9/Materials | Hacked Fabricated ------------ Antimatter Cannon | x1 | -5/Factory | Authchip Fusion Bomb Launcher | x1 | -5/Factory | Preloaded, Authchip Antimatter Cannon | x1 | -5/Factory | Authchip Repaired ---------- Flak Cannon | 34% | -9/Storage Hrd. Medium Armor Plating | 53% | -9/Storage Alien Tech Used ----------------- None Achievements -------------- None Challenges ------------ None Game ------ Seed DispersionProjectileBank Manual? 0 Play Time 06:31:30 Cumulative 1062.0 hours Start 2025.07.13 @ 15:46:57 End 2025.07.14 @ 01:38:56 Sessions 7 Manual Loads 0 Difficulty Rogue Special Mode None Game No. 528 Rogue 528 Adventurer 0 Explorer 0 Win Type - Total 23 Types 10/4/3/0/1/1/2/2/0/0 Lore% 89 Gallery% 89 Achievement% 83 Wizard Run 0 Options --------- Layout 0 ASCII 0 Keyboard 0 Movement Numpad Keybinds 0 Fullscreen 2 Font 24/Smallcaps Map View 76x50 Zoom Use 0% Tactical HUD 1 Map Filters NONE Filters SHIFT_HUE(315) Steam 1 RUN: 02f65ddf-cd17-4669-81ac-f7c25abff270